fUST/lending_fUST_20260110
["ID","MTS","AMOUNT","RATE_DAILY","PERIOD"]
[401149057,1767977497888,-500.0,0.00024932,2]
[401149058,1767977497901,-1207.395478,0.0002498,5]
[401149059,1767977497913,-75040.16705244,0.00025,30]
[401149060,1767977497927,-617.0,0.00025,6]
[401149061,1767977497940,-444.0,0.00025,2]
[401149062,1767977497953,-1085.42773501,0.00025,2]
[401149063,1767977497966,-8642.71562543,0.00025,2]
[401149064,1767977497980,-19800.0,0.00025,3]
[401149065,1767977497993,-1041.66666667,0.00025,30]
[401149066,1767977498006,-161.99,0.00025,7]
[401149067,1767977498019,-164.12,0.00025,7]
[401149068,1767977498033,-1000.0,0.00025,5]
[401149069,1767977498047,-500.0,0.00025069,2]
[401149070,1767977498061,-348.97106777,0.00025071,94]
[401149071,1767977498076,-160.0,0.00025079,5]
[401149072,1767977498090,-383.92,0.000251,3]
[401149073,1767977498103,-1610.24,0.000251,14]
[401149074,1767977498117,-20522.02,0.000251,2]
[401149075,1767977498132,-1200.0,0.0002515,7]
[401149076,1767977498145,-250.0,0.00025205,2]
[401149077,1767977498160,-500.0,0.00025206,2]
[401149078,1767977498174,-348.97106777,0.00025211,102]
[401149079,1767977498189,-10990.61241847,0.0002525,2]
[401149080,1767977498202,-694.68953832,0.00025298,2]
[401149081,1767977498216,-1000.0,0.00025333,7]
[401149082,1767977498231,-360.217755,0.00025342,2]
[401149083,1767977498246,-500.0,0.00025343,2]
[401149084,1767977498260,-336.0,0.00025373,7]
[401149085,1767977498274,-611.15,0.000254,2]
[401149086,1767977498288,-1126.1,0.000254,40]
[401149087,1767977498304,-1000.0,0.00025411,10]
[401149088,1767977498320,-1000.0,0.00025411,10]
[401149089,1767977498335,-654.53799371,0.00025423,20]
[401149090,1767977498350,-282.21136999,0.00025425,7]
[401149091,1767977498364,-702.56690576,0.00025425,2]
[401149092,1767977498379,-3988.65402246,0.00025425,2]
[401149093,1767977498566,-2000.0,0.00025426,7]
[401149094,1767977498585,-500.0,0.0002548,2]
[401149095,1767977498595,-160.0,0.00025485,6]
[401149096,1767977498606,-1200.0,0.00025516,7]
[401149097,1767977498616,-1200.0,0.00025517,7]
[401149098,1767977498625,-5000.0,0.00025556,2]
[401149099,1767977498635,-1200.0,0.00025574,7]
[401149100,1767977498644,-257.00667027,0.00025617,2]
[401149101,1767977498653,-195.0,0.00025726,17]
[401149102,1767977498663,-350.0,0.00025753,2]
[401149103,1767977498672,-1200.0,0.00025772,7]
[401149104,1767977498681,-467.25,0.000258,7]
[401149105,1767977498692,-1041.66666667,0.000258,30]
[401149106,1767977498701,-10000.0,0.0002587,7]
[401149107,1767977498711,-160.0,0.00025891,7]
[401149108,1767977498721,-500.0,0.00025947,7]
[401149109,1767977498731,-19900.0,0.00026,2]
[401149110,1767977498741,-161.0,0.00026,5]
[401149111,1767977498751,-529.71092475,0.00026,2]
[401149112,1767977498760,-500.0,0.00026,2]
[401149113,1767977498770,-25716.85177728,0.00026,30]
[401149114,1767977498780,-1041.66666667,0.00026,30]
[401149115,1767977498792,-161.99,0.000261,7]
[401149116,1767977498802,-164.12,0.000261,7]
[401149117,1767977498812,-20522.02,0.000261,2]
[401149118,1767977498823,-1200.0,0.00026115,7]
[401149119,1767977498833,-1200.0,0.00026144,7]
[401149120,1767977498843,-654.53799371,0.00026157,21]
[401149121,1767977498852,-194.59744594,0.0002616,2]
[401149122,1767977498862,-1200.0,0.00026176,7]
[401149123,1767977498872,-1610.24,0.000262,14]
[401149124,1767977498881,-192.33264282,0.0002621,2]
[401149125,1767977498890,-1200.0,0.00026253,7]
[401149126,1767977498899,-2000.0,0.00026284,7]
[401149127,1767977498908,-160.0,0.00026296,8]
[401149128,1767977498918,-450.0,0.00026301,2]
[401149129,1767977498927,-1200.0,0.00026393,7]
[401149130,1767977498938,-1200.0,0.00026499,7]
[401149131,1767977498950,-611.15,0.000265,2]
[401149132,1767977498959,-790.60520233,0.000265,7]
[401149133,1767977498969,-1200.0,0.00026527,7]
[401149134,1767977498979,-200.0,0.0002654,14]
[401149135,1767977498988,-500.0,0.00026616,7]
[401149136,1767977498998,-2146.0,0.00026657,2]
[401149137,1767977499007,-628.0,0.00026657,2]
[401149138,1767977499017,-1366.0,0.00026657,2]
[401149139,1767977499027,-230.43,0.00026665,2]
[401149140,1767977499037,-1200.0,0.00026691,7]
[401149141,1767977499047,-160.0,0.00026702,9]
[401149142,1767977499058,-500.0,0.00026809,7]
[401149143,1767977499068,-550.0,0.00026849,2]
[401149144,1767977499079,-10000.0,0.0002687,7]
[401149145,1767977499089,-654.53799371,0.00026891,23]
[401149146,1767977499099,-1200.0,0.00026912,7]
[401149147,1767977499109,-1200.0,0.00026921,7]
[401149148,1767977499118,-10990.61241847,0.00026925,2]
[401149149,1767977499128,-163.0,0.00026955,3]
[401149150,1767977499137,-600.0,0.00027,14]
[401149151,1767977499147,-1041.66666667,0.00027,7]
[401149152,1767977499157,-500.0,0.00027057,7]
[401149153,1767977499166,-335.0,0.00027064,7]
[401149154,1767977499176,-467.25,0.000271,7]
[401149155,1767977499185,-160.0,0.00027108,10]
[401149156,1767977499196,-500.0,0.00027127,7]
[401149157,1767977499206,-2000.0,0.00027141,7]
[401149158,1767977499216,-745.93712721,0.00027298,2]
[401149159,1767977499225,-1610.24,0.000273,14]
[401149160,1767977499234,-1200.0,0.00027342,7]
[401149161,1767977499244,-216.0,0.0002737,24]
[401149162,1767977499253,-1923.85,0.00027397,2]
[401149163,1767977499262,-223.88384285,0.00027397,2]
[401149164,1767977499271,-650.0,0.00027397,5]
[401149165,1767977499280,-300.0,0.00027397,2]
[401149166,1767977499289,-300.0,0.00027397,2]
[401149167,1767977499297,-300.0,0.00027397,2]
[401149168,1767977499306,-300.0,0.00027397,2]
[401149169,1767977499316,-300.0,0.00027397,2]
[401149170,1767977499325,-300.0,0.00027397,2]
[401149171,1767977499334,-300.0,0.00027397,2]
[401149172,1767977499343,-300.0,0.00027397,2]
[401149173,1767977499351,-300.0,0.00027397,2]
[401149174,1767977499360,-300.0,0.00027397,2]
[401149175,1767977499369,-300.0,0.00027397,2]
[401149176,1767977499378,-300.0,0.00027397,2]
[401149177,1767977499386,-300.0,0.00027397,2]
[401149178,1767977499395,-300.0,0.00027397,2]
[401149179,1767977499404,-300.0,0.00027397,2]
[401149180,1767977499413,-300.0,0.00027397,2]
[401149181,1767977499422,-300.0,0.00027397,2]
[401149182,1767977499430,-300.0,0.00027397,2]
[401149183,1767977499439,-300.0,0.00027397,2]
[401149184,1767977499448,-300.0,0.00027397,2]
[401149185,1767977499457,-300.0,0.00027397,2]
[401149186,1767977499466,-300.0,0.00027397,2]
[401149187,1767977499475,-300.0,0.00027397,2]
[401149188,1767977499484,-300.0,0.00027397,2]
[401149189,1767977499492,-300.0,0.00027397,2]
[401149190,1767977499501,-300.0,0.00027397,2]
[401149191,1767977499511,-300.0,0.00027397,2]
[401149192,1767977499519,-300.0,0.00027397,2]
[401149193,1767977499528,-300.0,0.00027397,2]
[401149194,1767977499537,-300.0,0.00027397,2]
[401149195,1767977499546,-300.0,0.00027397,2]
[401149196,1767977499555,-300.0,0.00027397,2]
[401149197,1767977499564,-300.0,0.00027397,2]
[401149198,1767977499572,-300.0,0.00027397,2]
[401149199,1767977499582,-300.0,0.00027397,2]
[401149200,1767977499591,-300.0,0.00027397,2]
[401149201,1767977499600,-300.0,0.00027397,2]
[401149202,1767977499609,-151.0,0.00027397,7]
[401149203,1767977499618,-151.0,0.00027397,7]
[401149204,1767977499627,-151.0,0.00027397,7]
[401149205,1767977499636,-151.0,0.00027397,7]
[401149206,1767977499645,-151.0,0.00027397,7]
[401149207,1767977499654,-281.934332,0.00027397,7]
[401149208,1767977499663,-500.0,0.00027397,5]
[401149209,1767977499672,-157.31337739,0.00027397,5]
[401149210,1767977499682,-515.22067722,0.00027397,5]
[401149211,1767977499694,-5000.0,0.00027413,2]
[401149212,1767977499702,-1200.0,0.00027457,7]
[401149213,1767977499712,-45941.24138367,0.000275,2]
[401149214,1767977499721,-160.0,0.00027514,11]
[401149215,1767977499731,-1000.0,0.00027525,14]
[401149216,1767977499742,-611.15,0.000276,2]
[401149217,1767977499751,-654.53799371,0.00027624,24]
[401149218,1767977499761,-8239.0,0.00027639,10]
[401149219,1767977499770,-1770.0,0.00027639,10]
[401149220,1767977499779,-1200.0,0.00027665,7]
[401149221,1767977499792,-1000.0,0.00027777,5]
[401149222,1767977499802,-1200.0,0.00027809,7]
[401149223,1767977499810,-500.0,0.00027819,7]
[401149224,1767977499819,-10000.0,0.0002787,7]
[401149225,1767977499830,-500.0,0.0002787,7]
[401149226,1767977499839,-160.0,0.0002792,12]
[401149227,1767977499849,-750.0,0.00027945,5]
[401149228,1767977499859,-1000.0,0.00027945,5]
[401149229,1767977499869,-250.0,0.00027945,5]
[401149230,1767977499878,-250.0,0.00027945,5]
[401149231,1767977499887,-1000.0,0.00027952,30]
[401149232,1767977499897,-1000.0,0.00027952,30]
[401149233,1767977499906,-579.0,0.00027952,30]
[401149234,1767977499915,-2020.92305372,0.00027972,7]
[401149235,1767977499925,-5016.95882183,0.0002798,2]
[401149236,1767977499934,-2000.0,0.00027998,7]
[401149237,1767977499946,-8117.48260775,0.00028,30]
[401149238,1767977499956,-20522.02,0.00028,2]
[401149239,1767977499965,-467.25,0.000283,7]
[401149240,1767977499974,-160.0,0.00028326,13]
[401149241,1767977499983,-654.53799371,0.00028358,26]
[401149242,1767977499992,-850.0,0.00028493,5]
[401149243,1767977500001,-1347.17752138,0.00028493,5]
[401149244,1767977500010,-350.0,0.00028493,5]
[401149245,1767977500019,-350.0,0.00028493,5]
[401149246,1767977500031,-298220.21308342,0.000285,7]
[401149247,1767977500040,-10990.61241847,0.000286,2]
[401149248,1767977500049,-1500.0,0.00028629,15]
[401149249,1767977500058,-611.15,0.000287,2]
[401149250,1767977500068,-38000.0,0.00028701,7]
[401149251,1767977500077,-38000.0,0.00028701,7]
[401149252,1767977500087,-4674.06230254,0.00028701,7]
[401149253,1767977500098,-160.0,0.00028732,14]
[401149254,1767977500107,-168.4926562,0.00028732,5]
[401149255,1767977500116,-335.0,0.00028756,14]
[401149256,1767977500126,-4000.0,0.0002876,5]
[401149257,1767977500135,-19137.07550739,0.0002876,2]
[401149258,1767977500144,-657.94520588,0.0002876,14]
[401149259,1767977500154,-1923.85,0.00028767,4]
[401149260,1767977500162,-360.217755,0.00028767,60]
[401149261,1767977500172,-172.4150159,0.000288,7]
[401149262,1767977500181,-2000.0,0.00028855,7]
[401149263,1767977500191,-400.0,0.00028947,2]
[401149264,1767977500200,-335.0,0.00028997,14]
[401149265,1767977500209,-890.36644943,0.00029,2]
[401149266,1767977500218,-456.0,0.00029,2]
[401149267,1767977500227,-192.0,0.00029014,32]
[401149268,1767977500237,-12262.26587291,0.0002902,2]
[401149269,1767977500246,-705.04702674,0.00029041,5]
[401149270,1767977500255,-450.0,0.00029041,5]
[401149271,1767977500266,-450.0,0.00029041,5]
[401149272,1767977500276,-1308.97598742,0.00029092,27]
[401149273,1767977500286,-508.96383451,0.0002913,5]
[401149274,1767977500296,-1000.0,0.00029169,14]
[401149275,1767977500305,-797.18471611,0.00029298,2]
[401149276,1767977500315,-5061.50040877,0.000295,2]
[401149277,1767977500325,-550.0,0.00029589,5]
[401149278,1767977500335,-550.0,0.00029589,5]
[401149279,1767977500344,-467.25,0.000296,7]
[401149280,1767977500353,-38000.0,0.00029645,10]
[401149281,1767977500362,-2146.0,0.00029657,2]
[401149282,1767977500371,-628.0,0.00029657,2]
[401149283,1767977500380,-1366.0,0.00029657,2]
[401149284,1767977500390,-2000.0,0.00029713,7]
[401149285,1767977500399,-611.15,0.000299,2]
[401149286,1767977500408,-156.74880836,0.0002992,5]
[401149287,1767977500417,-12069.01025408,0.0003,30]
[401149288,1767977500542,-1125.0,0.0003,5]
[401149289,1767977500552,-165.46,0.0003,5]
[401149290,1767977500561,-300.0,0.0003,60]
[401149291,1767977500570,-269.70662881,0.0003,2]
[401149292,1767977500579,-14011.26875714,0.0003,7]
[401149293,1767977500588,-157.6304671,0.0003,2]
[401149294,1767977500598,-1000.42065646,0.0003,2]
[401149295,1767977500607,-1000.0,0.0003,2]
[401149296,1767977500616,-688.0,0.0003,2]
[401149297,1767977500626,-10000.0,0.0003,2]
[401149298,1767977500635,-1814.0,0.0003,2]
[401149299,1767977500644,-400.81868346,0.0003,5]
[401149300,1767977500655,-2238.58947495,0.0003,4]
[401149301,1767977500665,-800.79964097,0.0003,10]
[401149302,1767977500675,-747.0,0.0003,7]
[401149303,1767977500685,-4075.86535113,0.0003,7]
[401149304,1767977500695,-343.1913704,0.0003,10]
[401149305,1767977500704,-508.8,0.0003,30]
[401149306,1767977500714,-20000.0,0.0003,3]
[401149307,1767977500723,-11142.61259827,0.0003,10]
[401149308,1767977500733,-161.70961374,0.0003,7]
[401149309,1767977500742,-219.53,0.0003,30]
[401149310,1767977500751,-1041.66666667,0.0003,10]
[401149311,1767977500760,-1041.66666667,0.0003,7]
[401149312,1767977500769,-1101.12,0.0003,30]
[401149313,1767977500779,-1101.12,0.0003006,30]
[401149314,1767977500791,-1867.21,0.000301,2]
[401149315,1767977500800,-4017.17054394,0.0003013,30]
[401149316,1767977500809,-28973.67475539,0.0003013,20]
[401149317,1767977500819,-10000.0,0.00030135,30]
[401149318,1767977500829,-500.0,0.00030136,12]
[401149319,1767977500838,-535.85953232,0.00030136,12]
[401149320,1767977500847,-4599.59508898,0.00030136,60]
[401149321,1767977500857,-4599.59508898,0.00030136,60]
[401149322,1767977500867,-4599.59508898,0.00030136,60]
[401149323,1767977500876,-4599.59508898,0.00030136,60]
[401149324,1767977500886,-4599.59508898,0.00030136,60]
[401149325,1767977500896,-4599.59508898,0.00030136,60]
[401149326,1767977500905,-4599.59508898,0.00030136,60]
[401149327,1767977500914,-4599.59508898,0.00030136,60]
[401149328,1767977500923,-2158.06013465,0.00030136,60]
[401149329,1767977500933,-500.0,0.00030136,30]
[401149330,1767977500943,-550.0,0.00030136,30]
[401149331,1767977500953,-500.0,0.00030136,15]
[401149332,1767977500962,-500.0,0.00030136,15]
[401149333,1767977500972,-500.0,0.00030136,15]
[401149334,1767977500981,-500.0,0.00030136,15]
[401149335,1767977500990,-500.0,0.00030136,15]
[401149336,1767977500999,-500.0,0.00030136,15]
[401149337,1767977501008,-500.0,0.00030136,15]
[401149338,1767977501018,-500.0,0.00030136,15]
[401149339,1767977501027,-500.0,0.00030136,15]
[401149340,1767977501037,-500.0,0.00030136,15]
[401149341,1767977501047,-500.0,0.00030136,15]
[401149342,1767977501057,-500.0,0.00030136,15]
[401149343,1767977501067,-500.0,0.00030136,15]
[401149344,1767977501076,-500.0,0.00030136,15]
[401149345,1767977501085,-500.0,0.00030136,15]
[401149346,1767977501095,-500.0,0.00030136,15]
[401149347,1767977501104,-500.0,0.00030136,15]
[401149348,1767977501114,-500.0,0.00030136,15]
[401149349,1767977501123,-152.42583449,0.00030136,15]
[401149350,1767977501132,-1000.0,0.00030136,2]
[401149351,1767977501142,-1000.0,0.00030136,2]
[401149352,1767977501151,-1000.0,0.00030136,2]
[401149353,1767977501160,-1000.0,0.00030136,2]
[401149354,1767977501170,-1000.0,0.00030136,2]
[401149355,1767977501179,-1000.0,0.00030136,2]
[401149356,1767977501189,-1000.0,0.00030136,2]
[401149357,1767977501199,-1000.0,0.00030136,2]
[401149358,1767977501209,-1000.0,0.00030136,2]
[401149359,1767977501218,-1000.0,0.00030136,2]
[401149360,1767977501228,-1000.0,0.00030136,2]
[401149361,1767977501237,-1000.0,0.00030136,2]
[401149362,1767977501246,-942.36872942,0.00030136,2]
[401149363,1767977501256,-500.0,0.00030136,30]
[401149364,1767977501266,-500.0,0.00030136,30]
[401149365,1767977501276,-500.0,0.00030136,30]
[401149366,1767977501285,-500.0,0.00030136,30]
[401149367,1767977501294,-500.0,0.00030136,30]
[401149368,1767977501304,-500.0,0.00030136,30]
[401149369,1767977501313,-475.92512597,0.00030136,30]
[401149370,1767977501323,-500.0,0.00030136,8]
[401149371,1767977501332,-500.0,0.00030136,8]
[401149372,1767977501342,-500.0,0.00030136,8]
[401149373,1767977501351,-500.0,0.00030136,8]
[401149374,1767977501360,-500.0,0.00030136,8]
[401149375,1767977501370,-500.0,0.00030136,8]
[401149376,1767977501379,-500.0,0.00030136,8]
[401149377,1767977501388,-552.82829808,0.00030136,8]
[401149378,1767977501398,-500.0,0.00030136,30]
[401149379,1767977501408,-500.0,0.00030136,30]
[401149380,1767977501417,-500.0,0.00030136,30]
[401149381,1767977501426,-500.0,0.00030136,30]
[401149382,1767977501435,-500.0,0.00030136,30]
[401149383,1767977501445,-500.0,0.00030136,30]
[401149384,1767977501455,-500.0,0.00030136,30]
[401149385,1767977501464,-500.0,0.00030136,30]
[401149386,1767977501474,-500.0,0.00030136,30]
[401149387,1767977501483,-500.0,0.00030136,30]
[401149388,1767977501494,-500.0,0.00030136,30]
[401149389,1767977501503,-500.0,0.00030136,30]
[401149390,1767977501512,-500.0,0.00030136,30]
[401149391,1767977501522,-500.0,0.00030136,30]
[401149392,1767977501531,-500.0,0.00030136,30]
[401149393,1767977501540,-500.0,0.00030136,30]
[401149394,1767977501549,-500.0,0.00030136,30]
[401149395,1767977501559,-500.0,0.00030136,30]
[401149396,1767977501568,-500.0,0.00030136,30]
[401149397,1767977501578,-500.0,0.00030136,30]
[401149398,1767977501587,-605.35795166,0.00030136,30]
[401149399,1767977501596,-1000.0,0.00030136,2]
[401149400,1767977501606,-1000.0,0.00030136,2]
[401149401,1767977501615,-1000.0,0.00030136,2]
[401149402,1767977501625,-1000.0,0.00030136,2]
[401149403,1767977501634,-1000.0,0.00030136,2]
[401149404,1767977501645,-1000.0,0.00030136,2]
[401149405,1767977501654,-1000.0,0.00030136,2]
[401149406,1767977501663,-1000.0,0.00030136,2]
[401149407,1767977501672,-1000.0,0.00030136,2]
[401149408,1767977501682,-1000.0,0.00030136,2]
[401149409,1767977501692,-1000.0,0.00030136,2]
[401149410,1767977501701,-500.0,0.00030136,7]
[401149411,1767977501710,-1000.0,0.00030136,2]
[401149412,1767977501719,-543.51293994,0.00030136,7]
[401149413,1767977501729,-1000.0,0.00030136,2]
[401149414,1767977501738,-1000.0,0.00030136,2]
[401149415,1767977501747,-1000.0,0.00030136,2]
[401149416,1767977501756,-1000.0,0.00030136,2]
[401149417,1767977501765,-1000.0,0.00030136,2]
[401149418,1767977501776,-590.79000713,0.00030136,2]
[401149419,1767977501788,-197.69981084,0.00030136,7]
[401149420,1767977501797,-500.0,0.00030136,2]
[401149421,1767977501806,-508.3844583,0.00030136,2]
[401149422,1767977501816,-500.0,0.00030136,60]
[401149423,1767977501826,-500.0,0.00030136,60]
[401149424,1767977501835,-500.0,0.00030136,60]
[401149425,1767977501844,-258.34773752,0.00030136,60]
[401149426,1767977501853,-649.61,0.00030136,30]
[401149427,1767977501865,-649.61,0.00030136,30]
[401149428,1767977501874,-649.61,0.00030136,30]
[401149429,1767977501883,-649.61,0.00030136,30]
[401149430,1767977501892,-649.61,0.00030136,30]
[401149431,1767977501902,-649.61,0.00030136,30]
[401149432,1767977501911,-649.61,0.00030136,30]
[401149433,1767977501920,-649.61,0.00030136,30]
[401149434,1767977501929,-649.61,0.00030136,30]
[401149435,1767977501938,-649.61,0.00030136,30]
[401149436,1767977501948,-649.61,0.00030136,30]
[401149437,1767977501957,-649.61,0.00030136,30]
[401149438,1767977501967,-649.61,0.00030136,30]
[401149439,1767977501976,-649.61,0.00030136,30]
[401149440,1767977501984,-649.61,0.00030136,30]
[401149441,1767977501993,-649.61,0.00030136,30]
[401149442,1767977502003,-649.61,0.00030136,30]
[401149443,1767977502012,-649.61,0.00030136,30]
[401149444,1767977502021,-649.61,0.00030136,30]
[401149445,1767977502031,-649.61,0.00030136,30]
[401149446,1767977502040,-649.61,0.00030136,30]
[401149447,1767977502051,-649.61,0.00030136,30]
[401149448,1767977502062,-649.61,0.00030136,30]
[401149449,1767977502071,-649.7157002,0.00030136,30]
[401149450,1767977502080,-500.0,0.00030136,7]
[401149451,1767977502089,-500.0,0.00030136,7]
[401149452,1767977502098,-500.0,0.00030136,7]
[401149453,1767977502107,-500.0,0.00030136,7]
[401149454,1767977502116,-500.0,0.00030136,7]
[401149455,1767977502125,-500.0,0.00030136,7]
[401149456,1767977502134,-500.0,0.00030136,7]
[401149457,1767977502143,-500.0,0.00030136,7]
[401149458,1767977502153,-500.0,0.00030136,7]
[401149459,1767977502162,-500.0,0.00030136,7]
[401149460,1767977502171,-500.0,0.00030136,7]
[401149461,1767977502180,-500.0,0.00030136,7]
[401149462,1767977502189,-500.0,0.00030136,7]
[401149463,1767977502199,-500.0,0.00030136,7]
[401149464,1767977502209,-500.0,0.00030136,7]
[401149465,1767977502218,-500.0,0.00030136,7]
[401149466,1767977502228,-500.0,0.00030136,7]
[401149467,1767977502237,-500.0,0.00030136,7]
[401149468,1767977502247,-500.0,0.00030136,7]
[401149469,1767977502372,-500.0,0.00030136,7]
[401149470,1767977502382,-500.0,0.00030136,7]
[401149471,1767977502391,-500.0,0.00030136,7]
[401149472,1767977502399,-300.64960176,0.00030136,7]
[401149473,1767977502409,-712.62,0.00030136,14]
[401149474,1767977502419,-712.62,0.00030136,14]
[401149475,1767977502428,-712.62,0.00030136,14]
[401149476,1767977502437,-712.62,0.00030136,14]
[401149477,1767977502447,-712.62,0.00030136,14]
[401149478,1767977502457,-712.62,0.00030136,14]
[401149479,1767977502466,-712.62,0.00030136,14]
[401149480,1767977502475,-712.62,0.00030136,14]
[401149481,1767977502483,-712.62,0.00030136,14]
[401149482,1767977502492,-712.62,0.00030136,14]
[401149483,1767977502501,-712.62,0.00030136,14]
[401149484,1767977502510,-712.62,0.00030136,14]
[401149485,1767977502521,-712.62,0.00030136,14]
[401149486,1767977502530,-712.62,0.00030136,14]
[401149487,1767977502539,-712.62,0.00030136,14]
[401149488,1767977502548,-712.62,0.00030136,14]
[401149489,1767977502557,-712.62,0.00030136,14]
[401149490,1767977502566,-712.62,0.00030136,14]
[401149491,1767977502575,-712.62,0.00030136,14]
[401149492,1767977502584,-712.62,0.00030136,14]
[401149493,1767977502593,-712.62,0.00030136,14]
[401149494,1767977502603,-712.62,0.00030136,14]
[401149495,1767977502612,-712.62,0.00030136,14]
[401149496,1767977502621,-712.69245396,0.00030136,14]
[401149497,1767977502632,-500.0,0.00030136,14]
[401149498,1767977502642,-576.81639983,0.00030136,14]
[401149499,1767977502651,-500.0,0.00030136,100]
[401149500,1767977502661,-500.0,0.00030136,100]
[401149501,1767977502670,-500.0,0.00030136,100]
[401149502,1767977502680,-500.0,0.00030136,100]
[401149503,1767977502689,-500.0,0.00030136,100]
[401149504,1767977502700,-500.0,0.00030136,100]
[401149505,1767977502709,-500.0,0.00030136,100]
[401149506,1767977502718,-500.0,0.00030136,100]
[401149507,1767977502727,-257.14197528,0.00030136,100]
[401149508,1767977502737,-518.45779138,0.00030136,60]
[401149509,1767977502746,-500.0,0.00030136,60]
[401149510,1767977502755,-500.0,0.00030136,60]
[401149511,1767977502763,-500.0,0.00030136,60]
[401149512,1767977502772,-500.0,0.00030136,60]
[401149513,1767977502781,-500.0,0.00030136,60]
[401149514,1767977502791,-500.0,0.00030136,60]
[401149515,1767977502800,-500.0,0.00030136,60]
[401149516,1767977502810,-500.0,0.00030136,60]
[401149517,1767977502822,-234.59240356,0.00030136,60]
[401149518,1767977502832,-500.0,0.00030136,2]
[401149519,1767977502845,-500.0,0.00030136,2]
[401149520,1767977502860,-500.0,0.00030136,2]
[401149521,1767977502869,-500.0,0.00030136,2]
[401149522,1767977502878,-500.0,0.00030136,2]
[401149523,1767977502887,-500.0,0.00030136,2]
[401149524,1767977502896,-500.0,0.00030136,2]
[401149525,1767977502905,-500.0,0.00030136,2]
[401149526,1767977502914,-500.0,0.00030136,2]
[401149527,1767977502923,-500.0,0.00030136,2]
[401149528,1767977502933,-500.0,0.00030136,2]
[401149529,1767977502942,-500.0,0.00030136,2]
[401149530,1767977502951,-170.6340001,0.00030136,2]
[401149531,1767977502960,-166.18840644,0.00030136,14]
[401149532,1767977502970,-663.11,0.00030136,10]
[401149533,1767977502979,-663.11,0.00030136,10]
[401149534,1767977502989,-663.11,0.00030136,10]
[401149535,1767977502998,-663.11,0.00030136,10]
[401149536,1767977503007,-663.11,0.00030136,10]
[401149537,1767977503016,-663.11,0.00030136,10]
[401149538,1767977503025,-663.11,0.00030136,10]
[401149539,1767977503034,-663.11,0.00030136,10]
[401149540,1767977503044,-663.11,0.00030136,10]
[401149541,1767977503053,-663.11,0.00030136,10]
[401149542,1767977503062,-663.11,0.00030136,10]
[401149543,1767977503071,-663.11,0.00030136,10]
[401149544,1767977503082,-663.11,0.00030136,10]
[401149545,1767977503091,-663.11,0.00030136,10]
[401149546,1767977503101,-663.11,0.00030136,10]
[401149547,1767977503112,-578.4073385,0.00030136,2]
[401149548,1767977503121,-663.11,0.00030136,10]
[401149549,1767977503131,-663.11,0.00030136,10]
[401149550,1767977503140,-663.11,0.00030136,10]
[401149551,1767977503150,-663.11,0.00030136,10]
[401149552,1767977503159,-663.11,0.00030136,10]
[401149553,1767977503168,-663.11,0.00030136,10]
[401149554,1767977503177,-663.11,0.00030136,10]
[401149555,1767977503186,-663.11,0.00030136,10]
[401149556,1767977503197,-663.20437694,0.00030136,10]